bitfinex/quotes_SOLUSD_20250118
["timestamp","ask_amount","ask_price","bid_price","bid_amount"]
[1737193910401,20.47025924,238.03,237.92,0.63017673]
[1737193911295,20.47025924,238.03,237.89,20.63020086]
[1737193911477,23.776884,238.0,237.85,4.7]
[1737193911877,20.47025924,237.97,237.85,4.7]
[1737193912487,20.47025924,237.97,237.84,8.7973]
[1737193913303,23.776884,237.96,237.84,8.7973]
[1737193913598,20.47025924,237.97,237.87,20.0]
[1737193913797,20.47025924,237.97,237.84,8.7973]
[1737193914302,20.47025924,237.97,237.87,20.0]
[1737193914620,20.47025924,237.93,237.87,20.0]
[1737193914914,20.47025924,237.93,237.85,0.063]
[1737193915389,23.776884,237.92,237.85,0.063]
[1737193915590,20.47025924,237.91,237.85,0.063]
[1737193916307,20.47025924,237.89,237.85,0.063]
[1737193919999,23.776884,237.88,237.85,0.063]
[1737193921406,20.47025924,237.87,237.85,0.063]
[1737193921615,44.24714324,237.86,237.85,0.063]
[1737193922304,23.776884,237.86,237.76,20.0]
[1737193923214,20.47025924,237.86,237.76,20.0]
[1737193923411,20.47025924,237.82,237.71,1.67204107]
[1737193923603,23.776884,237.79,237.69,2.2225]
[1737193924016,23.776884,237.81,237.69,22.2225]
[1737193924316,23.776884,237.81,237.69,2.2225]
[1737193924511,23.776884,237.79,237.69,2.2225]
[1737193924696,20.47025924,237.87,237.69,2.85337924]
[1737193924902,29.61095924,237.89,237.69,8.40897339]
[1737193925100,20.47025924,237.86,237.72,20.0]
[1737193925307,20.47025924,237.84,237.72,20.0]
[1737193925501,23.776884,237.83,237.69,22.85337924]
[1737193926108,23.776884,237.83,237.69,22.2225]
[1737193926303,23.776884,237.81,237.69,22.2225]
[1737193926501,23.776884,237.81,237.7,20.0]
[1737193926897,23.776884,237.81,237.69,22.2225]
[1737193927101,23.776884,237.81,237.76,0.063]
[1737193927315,20.49666596,237.81,237.76,0.063]
[1737193927501,0.03,237.86,237.76,0.063]
[1737193928720,23.806884,237.86,237.76,0.063]
[1737193929418,0.03,237.86,237.76,0.063]
[1737193929609,0.03,237.86,237.76,0.69356114]
[1737193930821,0.03,237.86,237.76,2.38167864]
[1737193931022,0.03,237.86,237.76,0.69356114]
[1737193932620,12.80366714,237.83,237.76,0.063]
[1737193932810,23.776884,237.82,237.76,0.063]
[1737193933420,23.776884,237.8,237.76,0.063]
[1737193933618,23.776884,237.78,237.76,0.063]
[1737193934331,20.50060896,237.81,237.76,0.063]
[1737193934506,0.03,237.86,237.76,0.063]
[1737193934827,23.776884,237.83,237.76,0.063]
[1737193935835,0.03,237.86,237.76,0.063]
[1737193936131,0.03,237.86,237.76,0.69378829]
[1737193937321,0.03,237.86,237.8,20.0]
[1737193937627,0.03,237.86,237.81,20.63058932]
[1737193937830,0.03,237.86,237.85,20.0]
[1737193938011,29.64990896,238.02,237.85,20.63032066]
[1737193938334,20.50060896,238.02,237.85,26.97406885]
[1737193938516,20.50060896,238.02,237.89,20.0]
[1737193938719,0.03,238.03,237.94,20.0]
[1737193939038,0.03,238.03,237.96,46.152184]
[1737193939221,0.03,238.03,238.01,20.0]
[1737193939418,0.03,238.03,238.02,0.62990944]
[1737193939621,0.03,238.03,238.01,20.0]
[1737193939824,0.03,238.03,237.99,20.0]
[1737193940330,0.03,238.1,238.0,0.62999508]
[1737193940524,0.03,238.1,238.03,20.0]
[1737193940920,0.03,238.1,238.04,20.62984986]
[1737193941328,20.50060896,238.21,238.08,20.0]
[1737193941537,20.50060896,238.23,238.09,20.62966906]
[1737193942209,15.63016914,238.35,238.09,20.62966906]
[1737193942210,20.50060896,238.29,238.1,2.3753]
[1737193942433,20.50060896,238.23,238.15,20.0]
[1737193942843,20.50060896,238.23,238.1,8.93571486]
[1737193943015,20.50060896,238.26,238.1,8.93571486]
[1737193943214,20.50060896,238.24,238.13,20.0]
[1737193943730,20.50060896,238.2,238.1,2.3753]
[1737193944039,23.776884,238.15,238.04,6.56041486]
[1737193944242,20.50060896,238.12,238.0,8.778]
[1737193944926,20.50060896,238.14,238.0,15.96839657]
[1737193945437,20.50060896,238.14,238.03,20.0]
[1737193946233,20.50060896,238.16,238.03,20.0]
[1737193947146,20.50060896,238.16,238.03,20.62989156]
[1737193947833,20.50060896,238.14,238.03,20.0]
[1737193948018,20.50060896,238.12,238.03,20.0]
[1737193949048,20.50060896,238.16,238.03,20.62996239]
[1737193949340,20.50060896,238.14,238.03,20.0]
[1737193949635,20.50060896,238.09,237.96,2.3753]
[1737193950024,20.50060896,238.11,237.96,4.01541784]
[1737193950336,20.50060896,238.11,237.97,0.62998006]
[1737193950535,23.776884,238.08,237.96,8.93571486]
[1737193951139,20.50060896,238.09,237.96,8.93571486]
[1737193951345,20.50060896,238.09,237.99,20.0]
[1737193951651,23.776884,238.08,237.99,20.0]
[1737193951837,20.50060896,238.05,237.9,0.63008657]
[1737193952043,20.50060896,238.03,237.9,8.26253833]
[1737193952236,20.50060896,238.03,237.93,20.0]
[1737193952540,20.50060896,238.01,237.89,2.3318]
[1737193952736,20.50060896,238.07,237.9,0.63023497]
[1737193952921,20.50060896,238.09,237.93,20.0]
[1737193953123,23.776884,238.08,237.94,0.63013081]
[1737193954042,20.50060896,238.11,237.98,20.0]
[1737193954239,20.50060896,238.07,237.98,20.0]
[1737193954541,20.50060896,238.08,237.94,20.0]
[1737193955043,20.50060896,238.08,237.94,20.63012436]
[1737193956019,20.50060896,238.06,237.94,20.63012436]
[1737193956220,20.50060896,238.06,237.94,20.0]
[1737193956441,23.776884,238.03,237.91,6.56041486]
[1737193956658,20.50060896,238.02,237.91,6.56041486]
[1737193957637,20.50060896,237.98,237.89,2.3318]
[1737193958144,20.50060896,237.98,237.91,20.0]
[1737193958343,20.50060896,237.98,237.85,0.063]
[1737193958727,8.5861,238.03,237.85,0.063]
[1737193958728,20.50060896,238.0,237.88,20.0]
[1737193960425,20.50060896,237.98,237.88,20.0]
[1737193961945,20.50060896,237.96,237.88,20.0]
[1737193962442,20.50060896,237.96,237.85,6.62341486]
[1737193962824,20.50060896,237.92,237.85,0.063]
[1737193963229,20.50060896,237.92,237.85,20.063]
[1737193963430,20.50060896,237.88,237.85,0.063]
[1737193964732,20.50060896,237.86,237.85,0.063]
[1737193967652,4.2038,237.88,237.85,0.063]
[1737193967849,4.204,237.87,237.85,0.063]
[1737193968539,4.2037,237.89,237.85,0.063]
[1737193968933,4.2016,238.0,237.85,0.063]
[1737193969230,20.50060896,237.99,237.88,20.0]
[1737193969431,20.50060896,237.97,237.88,20.0]
[1737193969633,23.776884,238.0,237.88,20.0]
[1737193969634,20.50060896,237.95,237.88,20.0]
[1737193971240,20.50060896,237.93,237.88,20.0]
[1737193972441,19.9459742,237.93,237.88,20.0]
[1737193973642,20.50060896,237.91,237.85,0.063]
[1737193974151,20.50060896,237.89,237.85,0.063]
[1737193974452,20.50060896,237.86,237.85,0.063]
[1737193978360,2.2779,237.94,237.85,0.063]
[1737193978563,20.50060896,237.94,237.85,0.063]
[1737193979757,20.50060896,237.92,237.85,0.063]
[1737193984749,20.50060896,237.9,237.85,0.063]
[1737193984944,20.50060896,237.87,237.85,0.063]
[1737193986850,24.70460896,237.87,237.85,0.063]
[1737193987478,20.50060896,237.86,237.85,0.063]
[1737193989455,44.27749296,237.86,237.85,0.063]
[1737193990264,20.50060896,237.88,237.85,0.063]
[1737193990658,20.50060896,237.9,237.85,0.063]
[1737193990862,20.50060896,237.88,237.85,0.063]
[1737193992471,20.50060896,237.86,237.85,0.063]
[1737193994661,20.50060896,237.88,237.85,0.063]
[1737193994972,0.03,237.93,237.85,0.063]
[1737193996062,0.03,237.93,237.85,20.69348317]
[1737193996265,0.03,237.93,237.85,0.69348317]
[1737193996471,20.50060896,237.88,237.85,0.063]
[1737193997078,20.50060896,237.9,237.85,0.063]
[1737193998472,0.03,237.93,237.85,0.063]
[1737193998674,20.50060896,237.92,237.85,0.063]
[1737193999676,0.03,237.93,237.85,0.063]
[1737194001181,0.03,237.93,237.88,20.0]
[1737194001377,0.03,237.93,237.9,20.0]
[1737194002385,0.03,237.93,237.91,0.63034477]
[1737194002688,0.03,237.93,237.9,20.0]
[1737194002861,0.03,237.93,237.91,0.6302929]
[1737194003369,0.03,237.93,237.9,20.0]
[1737194003565,0.03,237.93,237.87,9.44137385]
[1737194003877,0.03,237.93,237.87,8.8111]
[1737194004268,0.03,237.93,237.9,20.0]
[1737194004467,20.50060896,237.92,237.85,0.063]
[1737194005279,20.50060896,237.9,237.85,0.063]
[1737194005779,20.50060896,237.87,237.85,0.063]
[1737194011381,23.776884,237.86,237.85,0.063]
[1737194015384,48.48159296,237.86,237.85,0.063]
[1737194015587,2.1792,237.89,237.85,0.063]
[1737194015785,0.03,237.93,237.85,0.063]
[1737194016099,0.03,237.93,237.88,20.0]
[1737194016301,0.03,237.93,237.85,0.063]
[1737194016599,20.50060896,237.88,237.85,0.063]
[1737194017485,20.50060896,237.9,237.85,0.063]
[1737194018071,20.50060896,237.92,237.85,0.063]
[1737194018276,0.03,237.93,237.85,0.063]
[1737194018690,20.50060896,237.92,237.85,0.063]
[1737194020599,20.50060896,237.9,237.85,0.063]
[1737194021397,20.48141124,237.9,237.85,0.063]
[1737194021778,12.80089289,237.9,237.85,0.063]
[1737194022292,12.80089289,237.88,237.85,0.063]
[1737194022481,12.80089289,237.86,237.85,0.063]
[1737194023594,20.0,237.91,237.85,0.063]
[1737194023595,12.80089289,237.88,237.85,0.063]
[1737194025685,12.80089289,237.86,237.85,0.063]
[1737194026202,17.00499289,237.86,237.85,0.063]
[1737194026403,40.78187689,237.86,237.85,0.063]
[1737194027908,40.79063447,237.86,237.85,0.063]
[1737194028095,12.80965047,237.86,237.85,0.063]
[1737194028490,40.79063447,237.86,237.85,0.063]
[1737194029800,12.80965047,237.86,237.85,0.063]
[1737194030800,0.03,237.93,237.85,0.063]
[1737194030999,12.80965047,237.9,237.85,0.063]
[1737194031196,12.80965047,237.88,237.85,0.063]
[1737194032102,12.80965047,237.86,237.85,0.063]
[1737194035299,4.09586914,237.97,237.94,8.6536]
[1737194035603,3.07163318,238.08,238.03,20.0]
[1737194035787,48.15403407,238.18,238.08,12.80965047]
[1737194035991,0.03,238.18,238.17,12.80965047]
[1737194036192,13.10177135,238.29,238.2,20.0]
[1737194036395,13.10177135,238.29,238.26,20.0]
[1737194036608,13.10177135,238.29,238.28,23.776884]
[1737194036809,5.17480238,238.29,238.28,23.776884]
[1737194037109,5.17480238,238.29,238.27,12.80965047]
[1737194037300,5.17480238,238.29,238.25,4.66]
[1737194037301,12.80965047,238.41,238.25,4.66]
[1737194037605,12.80965047,238.41,238.32,12.80965047]
[1737194038187,12.80965047,238.43,238.34,12.80965047]
[1737194038390,12.78965047,238.43,238.34,12.80965047]
[1737194038586,12.63,238.6,238.3,23.776884]
[1737194038799,12.80965047,238.47,238.38,12.80965047]
[1737194039413,12.74013254,238.5,238.41,12.74013254]
[1737194039815,12.74013254,238.53,238.44,12.74013254]
[1737194040123,20.38349436,238.5,238.42,20.38349436]
[1737194040623,11.88444749,238.72,238.53,20.0]
[1737194040790,20.38349436,238.65,238.45,4.1937]
[1737194040986,11.88444749,238.72,238.46,0.62884709]
[1737194041185,20.38349436,238.7,238.61,20.38349436]
[1737194041403,32.26794185,238.72,238.63,20.38349436]
[1737194041592,11.88444749,238.72,238.69,20.38349436]
[1737194041803,2.1697,238.86,238.71,20.38349436]
[1737194042002,2.1697,238.86,238.67,20.38349436]
[1737194042195,20.38349436,238.76,238.67,20.38349436]
[1737194042394,20.38349436,238.76,238.58,4.66]
[1737194042395,2.1697,238.86,238.72,20.38349436]
[1737194042605,20.38349436,238.79,238.72,20.38349436]
[1737194042801,2.1697,238.86,238.58,4.66]
[1737194042802,20.38349436,238.77,238.68,20.38349436]
[1737194042998,20.34107453,238.74,238.58,4.66]
[1737194043202,6.3563,238.86,238.53,6.92320198]
[1737194043203,20.34107453,238.68,238.53,6.92320198]
[1737194043408,20.34107453,238.68,238.45,7.55173416]
[1737194043621,20.34107453,238.66,238.56,20.0]
[1737194043819,20.34107453,238.66,238.57,23.776884]
[1737194045121,20.34107453,238.68,238.57,23.776884]
[1737194045924,20.34107453,238.66,238.57,23.776884]
[1737194046424,20.34107453,238.64,238.48,9.07600198]
[1737194046603,20.34107453,238.64,238.51,20.0]
[1737194046923,20.34107453,238.66,238.53,23.776884]
[1737194047118,20.34107453,238.66,238.57,23.776884]
[1737194047425,20.34107453,238.79,238.66,20.0]
[1737194047725,20.34107453,238.83,238.7,20.0]
[1737194047903,20.34107453,238.83,238.65,15.57680198]
[1737194047904,20.34107453,238.83,238.71,23.776884]
[1737194048108,20.34107453,238.83,238.75,23.776884]
[1737194048919,20.34107453,238.77,238.55,8.6536]
[1737194049123,20.34107453,238.8,238.58,0.62814838]
[1737194049424,20.34107453,238.8,238.61,20.0]
[1737194049609,20.34107453,238.82,238.69,20.0]
[1737194050004,20.34107453,238.78,238.69,20.0]
[1737194050216,20.34107453,238.88,238.61,7.24397137]
[1737194050217,20.34107453,238.82,238.68,20.0]
[1737194050398,20.34107453,238.82,238.69,23.776884]
[1737194050829,8.8997,238.92,238.69,23.776884]
[1737194050830,8.8997,238.92,238.72,20.0]
[1737194051010,20.34107453,238.87,238.73,23.776884]
[1737194052029,20.34107453,238.93,238.73,23.776884]
[1737194052197,20.34107453,238.93,238.78,20.0]
[1737194052399,20.34107453,238.95,238.83,23.776884]
[1737194052824,10.3728,239.24,238.94,20.0]
[1737194053101,20.34107453,239.07,238.94,20.0]
[1737194053309,20.34107453,239.05,238.94,20.0]
[1737194053621,20.34107453,238.98,238.81,8.4721]
[1737194053814,20.34107453,239.0,238.83,23.776884]
[1737194054115,4.64,239.19,238.81,8.4721]
[1737194054116,20.34107453,238.92,238.81,8.4721]
[1737194054299,20.34107453,238.94,238.81,8.4721]
[1737194054728,20.34107453,238.88,238.74,4.64]
[1737194054924,20.34107453,238.86,238.72,8.4721]
[1737194055107,20.34107453,238.79,238.68,6.61574475]
[1737194055435,20.32306795,238.83,238.67,13.84543332]
[1737194055613,20.32306795,238.78,238.67,13.21718693]
[1737194055815,33.03679436,238.75,238.67,13.21718693]
[1737194056038,33.03679436,238.79,238.64,8.4721]
[1737194056213,33.03679436,238.79,238.65,23.776884]
[1737194056401,33.03679436,238.79,238.64,9.10030211]
[1737194056402,33.03679436,238.75,238.64,8.4721]
[1737194056796,20.0,238.85,238.64,8.4721]
[1737194056797,33.03679436,238.73,238.64,8.4721]
[1737194057020,33.03679436,238.71,238.59,6.61574475]
[1737194057202,33.03679436,238.75,238.6,0.62837044]
[1737194057511,33.03679436,238.79,238.64,20.0]
[1737194057714,8.2249,238.96,238.69,20.0]
[1737194057898,33.03679436,238.84,238.7,23.776884]
[1737194058103,33.03679436,238.84,238.74,23.776884]
[1737194058407,33.03679436,238.82,238.74,23.776884]
[1737194058610,33.03679436,238.84,238.74,23.776884]
[1737194059019,33.03679436,238.8,238.74,23.776884]
[1737194059220,33.03679436,238.82,238.74,23.776884]
[1737194059419,33.03679436,238.8,238.74,23.776884]
[1737194059620,33.03679436,238.76,238.65,6.61574475]
[1737194059927,33.03679436,238.85,238.66,0.62830328]
[1737194060134,33.03679436,238.87,238.74,20.0]
[1737194060713,33.03679436,238.87,238.75,23.776884]
[1737194060898,22.1479,238.98,238.75,23.776884]
[1737194061104,33.03679436,238.87,238.75,23.776884]
[1737194061705,8.2249,239.04,238.79,43.776884]
[1737194061905,33.03679436,238.92,238.79,43.776884]
[1737194062106,33.03679436,238.87,238.79,43.776884]
[1737194062523,33.03679436,238.85,238.76,8.4721]
[1737194062726,33.03679436,238.93,238.79,20.0]
[1737194062912,33.03679436,238.95,238.79,20.62777988]
[1737194063433,33.03679436,238.97,238.85,23.776884]
[1737194063634,33.03679436,238.95,238.85,24.40456668]
[1737194064040,33.03679436,239.03,238.92,20.0]
[1737194064330,0.03,239.04,238.96,28.4721]
[1737194064637,33.03679436,239.01,238.96,8.4721]
[1737194064809,33.03679436,239.01,238.88,10.6443]
[1737194065009,33.03679436,239.01,238.91,20.0]
[1737194065220,33.03679436,238.99,238.88,8.4721]
[1737194065442,33.03679436,239.01,238.89,23.776884]
[1737194065724,33.03679436,238.97,238.89,23.776884]
[1737194065925,0.03,239.04,238.82,4.64]
[1737194065926,33.03679436,238.92,238.82,4.64]
[1737194066118,33.03679436,238.94,238.82,4.64]
[1737194066307,33.03679436,238.98,238.83,7.24355091]
[1737194066506,33.03679436,238.98,238.86,20.0]
[1737194067224,33.03679436,238.98,238.87,23.776884]
[1737194067608,33.03679436,238.96,238.87,23.776884]
[1737194067821,33.03679436,238.94,238.83,6.61574475]
[1737194068314,33.03679436,238.92,238.8,8.5926]
[1737194068510,33.03679436,238.88,238.76,6.61574475]
[1737194068710,33.03679436,238.94,238.8,6.61574475]
[1737194068914,15.48679436,238.94,238.81,23.776884]
[1737194069116,15.48679436,238.94,238.83,23.776884]
[1737194069431,33.03679436,238.96,238.87,23.776884]
[1737194069621,33.03679436,238.94,238.87,23.776884]
[1737194069829,33.03679436,238.94,238.85,23.776884]
[1737194070008,33.03679436,238.94,238.86,20.0]
[1737194070431,0.03,239.04,238.87,23.776884]
[1737194070630,33.03679436,239.0,238.91,23.776884]
[1737194070839,33.03679436,239.02,238.91,24.40450895]
[1737194071241,0.03,239.04,238.91,24.40450895]
[1737194071242,33.03679436,239.0,238.91,24.40450895]
[1737194071420,33.03679436,239.0,238.86,6.61574475]
[1737194071620,33.03679436,239.0,238.91,20.0]
[1737194071935,33.03679436,239.02,238.92,8.5926]
[1737194072315,33.06679436,239.04,238.93,23.776884]
[1737194072549,0.03,239.04,238.97,23.776884]
[1737194073128,33.06679436,239.04,238.97,23.776884]
[1737194073448,33.03679436,238.99,238.92,8.5926]
[1737194074043,33.03679436,238.99,238.93,23.776884]
[1737194074615,33.03679436,238.97,238.94,0.063]
[1737194075111,33.03679436,238.95,238.94,0.063]
[1737194075313,33.03679436,239.03,238.94,0.063]
[1737194076717,33.03679436,239.06,238.95,9.22014783]
[1737194076916,33.03679436,239.04,238.95,8.5926]
[1737194077113,33.03679436,239.06,238.95,8.5926]
[1737194077319,33.03679436,239.06,239.0,23.776884]
[1737194077617,33.03679436,239.04,238.96,23.776884]
[1737194077816,33.03679436,239.02,238.96,23.776884]
[1737194078120,33.03679436,238.98,238.94,0.063]
[1737194078837,33.03679436,238.96,238.94,0.063]
[1737194083239,33.03679436,238.99,238.94,0.063]
[1737194083441,33.03679436,239.01,238.94,0.063]
[1737194084345,33.03679436,239.03,238.94,0.063]
[1737194084843,33.03679436,239.03,238.97,23.776884]
[1737194085019,33.03679436,239.05,238.97,23.776884]
[1737194085823,33.03679436,239.01,238.94,0.063]
[1737194086029,33.03679436,238.99,238.94,0.063]
[1737194086230,33.03679436,239.01,238.94,0.063]
[1737194086636,33.03679436,239.01,238.94,23.839884]
[1737194087026,33.03679436,238.99,238.94,0.063]
[1737194087227,0.03,239.04,238.94,0.063]
[1737194087228,33.03679436,238.97,238.94,0.063]
[1737194087835,33.03679436,238.95,238.94,0.063]
[1737194089342,33.03679436,238.99,238.94,0.063]
[1737194089527,33.03679436,238.97,238.94,0.063]
[1737194090150,8.4037,239.02,238.94,0.063]
[1737194090151,33.03679436,238.95,238.94,0.063]
[1737194092231,36.14262396,238.95,238.94,0.063]
[1737194093336,36.11537577,238.95,238.94,0.063]
[1737194093851,23.4207111,238.95,238.94,0.063]
[1737194094360,47.1975951,238.95,238.94,0.063]
[1737194094728,47.1975951,238.95,238.75,16.06159074]
[1737194094934,20.3148815,238.85,238.75,16.06159074]
[1737194095254,20.3148815,238.85,238.76,20.0]
[1737194095448,20.3148815,238.85,238.74,0.063]
[1737194095449,20.3148815,238.81,238.74,0.063]
[1737194095649,20.3148815,238.85,238.74,0.063]
[1737194095956,20.3148815,238.85,238.76,20.0]
[1737194096453,20.3148815,238.85,238.74,0.063]
[1737194096955,20.3148815,238.85,238.74,23.839884]
[1737194097346,20.3148815,238.83,238.74,0.063]
[1737194097544,20.3148815,238.81,238.74,0.063]
[1737194097744,20.3148815,238.79,238.74,0.063]
[1737194097932,20.3148815,238.84,238.74,0.063]
[1737194098654,20.3148815,238.88,238.74,20.063]
[1737194099158,20.3148815,238.88,238.79,23.776884]
[1737194099651,20.3148815,238.86,238.74,0.063]
[1737194100159,20.3148815,238.86,238.75,20.0]
[1737194100359,20.3148815,238.9,238.76,23.776884]
[1737194100534,20.3148815,238.9,238.79,20.0]
[1737194100737,20.3148815,238.94,238.8,23.776884]
[1737194100938,20.3148815,238.88,238.75,20.0]
[1737194101258,20.3148815,238.86,238.75,20.0]
[1737194101559,20.3148815,238.88,238.76,23.776884]
[1737194101769,20.3148815,238.9,238.76,23.776884]
[1737194101950,20.3148815,238.88,238.76,23.776884]
[1737194102462,20.3148815,238.84,238.74,0.063]
[1737194102662,20.3148815,238.82,238.74,0.063]
[1737194102958,20.3148815,238.8,238.74,0.063]
[1737194103164,20.33046466,238.76,238.74,0.063]
[1737194105246,4.1884,238.75,238.74,0.063]
[1737194105853,20.33046466,238.76,238.74,0.063]
[1737194106348,24.51876466,238.76,238.74,0.063]
[1737194107359,23.776884,238.75,238.74,0.063]
[1737194107944,20.0,238.72,238.52,20.33046466]
[1737194108147,20.33046466,238.61,238.52,20.33046466]
[1737194108963,20.33046466,238.57,238.5,0.063]
[1737194109163,20.33046466,238.55,238.5,0.063]
[1737194109959,20.33046466,238.52,238.5,0.063]
[1737194111156,9.5216,238.51,238.5,0.063]
[1737194112248,20.33046466,238.52,238.5,0.063]
[1737194113448,24.52296466,238.52,238.5,0.063]
[1737194113642,24.52296466,238.52,238.32,20.33046466]
[1737194113643,20.0,238.49,238.32,20.33046466]
[1737194113956,20.33046466,238.41,238.32,20.33046466]
[1737194114148,4.1914,238.58,238.38,20.33046466]
[1737194114347,20.33046466,238.5,238.4,20.33046466]
[1737194114762,20.33046466,238.41,238.25,2.5241]
[1737194114967,20.33046466,238.41,238.32,20.33046466]
[1737194116269,20.33046466,238.47,238.38,20.33046466]
[1737194116969,20.33046466,238.45,238.35,20.33046466]
[1737194117763,20.33046466,238.43,238.35,20.33046466]
[1737194119761,20.0,238.52,238.31,40.33046466]
[1737194119968,20.33046466,238.37,238.29,20.33046466]
[1737194120267,20.33046466,238.37,238.28,9.4161]
[1737194120467,20.33046466,238.35,238.28,9.4161]
[1737194120644,40.599484,238.51,238.25,20.33046466]
[1737194120645,20.33046466,238.33,238.25,20.33046466]
[1737194121669,20.33046466,238.37,238.29,20.33046466]
[1737194121968,20.33046466,238.37,238.3,23.776884]
[1737194122155,20.33046466,238.41,238.33,40.33046466]
[1737194122780,20.33046466,238.39,238.33,20.0]
[1737194123078,20.33046466,238.37,238.21,9.8905]
[1737194123255,20.33046466,238.41,238.32,20.33046466]
[1737194123771,9.5516,238.49,238.3,0.063]
[1737194123772,20.33046466,238.34,238.3,0.063]
[1737194123970,20.33046466,238.31,238.3,0.063]
[1737194124649,29.85206466,238.31,238.09,0.62956414]
[1737194124972,9.5216,238.31,238.02,6.63823777]
[1737194125152,20.33046466,238.22,238.13,20.33046466]
[1737194125353,20.33046466,238.22,238.16,20.0]
[1737194125547,20.33046466,238.2,238.11,20.39346466]
[1737194125748,20.33046466,238.18,238.11,0.063]
[1737194126365,20.33046466,238.16,238.11,0.063]
[1737194126766,20.33046466,238.14,238.11,0.063]
[1737194126959,20.33046466,238.12,238.11,0.063]
[1737194127162,20.33046466,238.16,238.11,0.063]
[1737194127955,20.33046466,238.12,238.11,0.063]
[1737194130388,20.33046466,238.14,238.11,0.063]
[1737194130757,20.33046466,238.21,238.13,23.776884]
[1737194130952,20.33046466,238.21,238.12,40.33046466]
[1737194131169,20.33046466,238.17,238.11,0.063]
[1737194131879,20.33046466,238.15,238.11,0.063]
[1737194132075,20.33046466,238.19,238.11,0.063]
[1737194132386,20.33046466,238.21,238.13,40.33046466]
[1737194134487,20.33046466,238.17,238.11,0.063]
[1737194134677,20.33046466,238.12,238.11,0.063]
[1737194141567,20.33046466,238.16,238.11,0.063]
[1737194141769,20.33046466,238.18,238.11,0.063]
[1737194141981,20.33046466,238.12,238.11,0.063]
[1737194150074,20.08515024,238.12,238.11,0.063]
[1737194150273,20.33046466,238.12,238.11,0.063]
[1737194152011,20.33046466,238.14,238.11,0.063]
[1737194156801,20.33046466,238.18,238.11,20.39346466]
[1737194157977,20.33046466,238.2,238.12,23.776884]
[1737194158794,20.0,238.16,238.11,0.063]
[1737194159101,29.97876466,238.12,237.94,20.33046466]
[1737194159281,20.33046466,238.01,237.91,20.33046466]
[1737194159690,20.33046466,238.01,237.94,20.0]
[1737194159889,20.33046466,238.03,237.96,20.0]
[1737194160191,20.33046466,238.05,237.95,20.33046466]
[1737194160809,20.33046466,238.02,237.85,0.69339714]
[1737194160981,3.07890664,238.11,237.85,0.69339714]
[1737194160982,20.33046466,238.0,237.91,20.33046466]
[1737194161299,20.33046466,238.06,238.0,0.063]
[1737194161683,20.33046466,238.04,238.0,0.063]
[1737194162179,20.33046466,238.01,238.0,0.063]
[1737194165874,20.33046466,238.01,237.88,20.0]
[1737194166096,20.33046466,237.89,237.87,0.063]
[1737194167502,24.53416466,237.89,237.85,0.063]
[1737194167676,20.33046466,237.86,237.85,0.063]
[1737194168016,20.33046466,237.77,237.76,0.063]
[1737194169985,40.66092932,237.77,237.76,0.063]
[1737194170302,20.33046466,237.77,237.76,0.063]
[1737194172298,20.33046466,237.81,237.76,20.063]
[1737194172987,20.33046466,237.79,237.76,20.063]
[1737194173184,20.33046466,237.81,237.76,20.063]
[1737194173389,20.33046466,237.81,237.76,0.063]
[1737194173979,20.33046466,237.81,237.76,20.063]
[1737194174605,20.33046466,237.81,237.76,0.063]
[1737194175084,20.0,237.88,237.77,23.776884]
[1737194175279,20.33046466,237.86,237.77,44.10734866]
[1737194175501,20.33046466,237.88,237.81,23.776884]
[1737194176900,20.33046466,237.92,237.86,43.776884]
[1737194177122,20.33046466,237.94,237.91,20.0]
[1737194177281,20.33046466,237.96,237.91,20.0]
[1737194177477,0.03,238.01,237.91,20.0]
[1737194177683,20.33046466,237.92,237.86,9.9843]
[1737194177997,20.33046466,237.9,237.86,33.761184]